{"text_format":"1","workbook":"xlsx","n_sheets":1,"sheets":["Result"],"not_rendered":{"charts":0,"images":1,"macros":1,"external_links":0,"defined_names":0,"comments":0,"pivot_tables":0},"unopened":[],"bounds":{"document_bytes":16777216,"sheet_cells":100000,"rows_first":2000,"rows_last":500,"rows_between":2000,"halvings":0,"cell_chars":16384,"cell_head_chars":4096},"cells_cut":0,"cells_raw":0,"read":"whole","date_system":"1900"}

{"sheet":"Result","index":0,"n_rows":97,"n_cols":7,"rows_kept":97,"cut":false,"hidden":false,"merged":[[84,0,84,1],[0,1,4,4],[5,0,5,1],[28,0,28,1],[30,0,30,1],[66,0,66,1]]}
["Legenda per la stazione appaltante","Accordo Quadro per l'affidamento di servizi applicativi per la Pubblica Amministrazione\nLotto Centro\nConsip Public",null,null,null,"Legenda per il concorrente"]
["Voce/Servizio da selezionare/inserire in piattaforma",null,null,null,null,"Valore da inserire e trasferire in piattaforma"]
["Valore da inserire in piattaforma",null,null,null,null,"Valore calcolato da trasferire in piattaforma"]
[null,null,null,null,null,"Valore calcolato"]
[null,null,null,null,null,"Valore complessivo offerto"]
["Tariffe unitarie"]
[".","."]
["Unità di misura","Figure Professionali",null,null,"Tariffa unitaria","Base d'asta","Messaggi"]
[".","."]
["GG/Persona","Analista Funzionale",null,null,null,400,{"$f":"IF(OR(NOT(ISNUMBER(E10)),E10=\"\",E10<0,E10=0),\"Attenzione, campo non valorizzato/non valido\",\"\")","v":"Attenzione, campo non valorizzato/non valido"}]
["GG/Persona","Analista Programmatore",null,null,null,300,"Attenzione, campo non valorizzato/non valido"]
["GG/Persona","Capo Progetto",null,null,null,500,"Attenzione, campo non valorizzato/non valido"]
["GG/Persona","Data Base Administrator",null,null,null,450,"Attenzione, campo non valorizzato/non valido"]
["GG/Persona","Progettista Data Warehouse",null,null,null,480,"Attenzione, campo non valorizzato/non valido"]
["GG/Persona","Programmatore",null,null,null,240,"Attenzione, campo non valorizzato/non valido"]
["GG/Persona","Specialista di Tecnologia/Prodotto",null,null,null,450,"Attenzione, campo non valorizzato/non valido"]
["GG/Persona","Specialista di pacchetto",null,null,null,600,"Attenzione, campo non valorizzato/non valido"]
["GG/Persona","Tecnico di collaudo ed integrazione sistemi",null,null,null,450,"Attenzione, campo non valorizzato/non valido"]
["GG/Persona","Business Process Re-engineer",null,null,null,600,"Attenzione, campo non valorizzato/non valido"]
["GG/Persona","Specialista di Tecnologia/Prodotto senior",null,null,null,650,"Attenzione, campo non valorizzato/non valido"]
["GG/Persona","Specialista di tematica",null,null,null,450,"Attenzione, campo non valorizzato/non valido"]
["GG/Persona","Data Scientist",null,null,null,600,{"$f":"IF(OR(NOT(ISNUMBER(E22)),E22>F22,E22=0,E22=\"\",E22<0,),\"Attenzione, campo non valorizzato/non valido oppure supera la base d'asta\",\"\")","v":"Attenzione, campo non valorizzato/non valido oppure supera la base d'asta"}]
[]
[]
["Metrica","Tipo Progetto/Tipo Function Point","Prod.tà",null,"Valore unitario Function Point","Base d'asta"]
[".","."]
["Function Point ADD PC_CC","Progetto Conoscitivo Ciclo Completo ADD",1.8,null,null,{"$f":"TRUNC(287.6/1.8,2)","v":159.77000000000001},{"$f":"IF(OR(NOT(ISNUMBER(E27)),E27=\"\",E27<0,E27=0),\"Attenzione, campo non valorizzato/non valido\",\"\")","v":"Attenzione, campo non valorizzato/non valido"}]
[]
["Prezzi delle attività oggetto di fornitura e valore complessivo offerto"]
[".","."]
["Servizi realizzativi"]
[".","."]
["Metrica","Serv.Real. - Servizi a Function Point - Mix di Figure Professionali","Imp. %","Q.tà","Prezzo offerto","Base d'asta"]
[".","."]
[null,"PC_CC Capo Progetto",0.05]
[null,"PC_CC Analista Funzionale",0.15]
[null,"PC_CC Analista Programmatore",0.2]
[null,"PC_CC Progettista Data Warehouse",0.2]
[null,"PC_CC Data Base Administrator",0.1]
[null,"PC_CC Specialista di Tecnologia/Prodotto",0.1]
[null,"PC_CC Programmatore",0.2]
["Function Point ADD","Sviluppo/Manutenzione evolutiva Progetto Conoscitivo Ciclo Completo ADD",null,12000,{"$f":"TRUNC(D42*E27,2)","v":0},{"$f":"TRUNC(D42*F27,2)","v":1917240}]
[null,"Totale Sviluppo/Manutenzione evolutiva Function Point",null,null,{"$f":"TRUNC(SUM(E29:E42),2)","v":0},{"$f":"TRUNC(SUM(F29:F42),2)","v":1917240}]
[null,"."]
[]
["Descrizione servizio (Metrica)","Serv.Real. - Servizi a GG/Persona - Mix di Figure Professionali","Imp. %","Q.tà","Prezzo offerto","Base d'asta"]
[".","."]
["Manutenzione adeguativa (GG/Persona)","Analista Funzionale",0.2]
["Manutenzione adeguativa (GG/Persona)","Analista Programmatore",0.2]
["Manutenzione adeguativa (GG/Persona)","Capo Progetto",0.03]
["Manutenzione adeguativa (GG/Persona)","Data Base Administrator",0.02]
["Manutenzione adeguativa (GG/Persona)","Progettista Data Warehouse",0.15]
["Manutenzione adeguativa (GG/Persona)","Programmatore",0.35]
["Manutenzione adeguativa (GG/Persona)","Specialista di Tecnologia/Prodotto",0.05]
[null,"Totale Manutenzione adeguativa (GG/Persona)",null,1570,{"$f":"TRUNC((E10*C48+E11*C49+E12*C50+E13*C51+E14*C52+E15*C53+E16*C54)*D55,2)","v":0},{"$f":"TRUNC((263.82)*D55,2)","v":414197.4}]
[null,"."]
["Personalizzazione e/o Parametrizzazione (GG/Persona)","Analista Funzionale",0.18]
["Personalizzazione e/o Parametrizzazione (GG/Persona)","Analista Programmatore",0.1]
["Personalizzazione e/o Parametrizzazione (GG/Persona)","Capo Progetto",0.02]
["Personalizzazione e/o Parametrizzazione (GG/Persona)","Programmatore",0.3]
["Personalizzazione e/o Parametrizzazione (GG/Persona)","Specialista di pacchetto",0.3]
["Personalizzazione e/o Parametrizzazione (GG/Persona)","Tecnico di collaudo ed integrazione sistemi",0.1]
[null,"Totale Personalizzazione e/o Parametrizzazione (GG/Persona)",null,2600,{"$f":"TRUNC((E10*C57+E11*C58+E12*C59+E15*C60+E17*C61+E18*C62)*D63,2)","v":0},{"$f":"TRUNC((301.2)*D63,2)","v":783120}]
[null,"."]
[]
[]
["Servizi complementari"]
[".","."]
[]
["Descrizione servizio (Metrica)","Serv.Compl. - Servizi a GG/Persona - Mix di Figure Professionali","Imp. %","Q.tà","Prezzo offerto","Base d'asta"]
[".","."]
["Supporto specialistico (GG/Persona)","Analista Funzionale",0.36]
["Supporto specialistico (GG/Persona)","Analista Programmatore",0.02]
["Supporto specialistico (GG/Persona)","Business Process Re-engineer",0.13]
["Supporto specialistico (GG/Persona)","Capo Progetto",7.0000000000000007E-2]
["Supporto specialistico (GG/Persona)","Progettista Data Warehouse",0.02]
["Supporto specialistico (GG/Persona)","Specialista di pacchetto",0.04]
["Supporto specialistico (GG/Persona)","Specialista di Tecnologia/Prodotto",0.06]
["Supporto specialistico (GG/Persona)","Specialista di Tecnologia/Prodotto senior",0.08]
["Supporto specialistico (GG/Persona)","Specialista di tematica",0.22]
[null,"Totale Supporto specialistico (GG/Persona)",null,10093,{"$f":"TRUNC((E10*C72+E11*C73+E19*C74+E12*C75+E14*C76+E17*C77+E16*C78+E20*C79+E21*C80)*D81,2)","v":0},{"$f":"TRUNC((361.1)*D81,2)","v":3644582.3}]
[null,"."]
[]
[]
["Servizi accessori"]
[".","."]
["Descrizione servizio (Metrica)","Serv.Acc. - Mix di Figure Professionali / item","Imp. %","Q.tà","Prezzo offerto","Base d'asta"]
[".","."]
["Supporto Analisi dei Dati (GG/Persona)","Data Scientist",1]
[null,"Totale Supporto Analisi dei Dati (GG/Persona)",null,925,{"$f":"TRUNC((E22*C89)*D90,2)","v":0},{"$f":"TRUNC((F22*C89)*D90,2)","v":555000}]
[null,"."]
[]
[]
[]
[]
[null,null,null,null,null,"Base d'asta da Offerte presentate in AQ","Messaggi"]
[null,"Valore complessivo offerto",null,null,{"$f":"TRUNC(E43+E55+E63+E81+E90,2)","v":0},{"$f":"TRUNC(F43+F55+F63+F81+F90,2)","v":7314139.7000000002},{"$f":"IF(OR(NOT(ISNA(MATCH(\"Attenzione*\",G6:G93,0))),E97>F97),\"Attenzione, campi di offerta non valorizzati/non validi oppure il valore complessivo offerto supera la base d'asta\",\"\")","v":"Attenzione, campi di offerta non valorizzati/non validi oppure il valore complessivo offerto supera la base d'asta"}]